bitfinex-derivatives/quotes_BTCF0:USTF0_20250509
["timestamp","ask_amount","ask_price","bid_price","bid_amount"]
[1746801738179,0.81218797,102720.0,102710.0,0.72602536]
[1746801738384,0.45138797,102720.0,102710.0,0.73328965]
[1746801738684,0.45138797,102720.0,102710.0,0.48645321]
[1746801739383,0.45438797,102720.0,102710.0,0.48645321]
[1746801739685,0.45618797,102720.0,102710.0,0.48645321]
[1746801739886,0.17119367,102720.0,102710.0,1.09408965]
[1746801740188,0.17119367,102720.0,102710.0,2.26008965]
[1746801740392,0.12099468,102730.0,102720.0,0.1946943]
[1746801740585,0.12099468,102730.0,102720.0,1.44047947]
[1746801740781,0.14450925,102740.0,102730.0,0.1946753]
[1746801740987,0.004,102750.0,102740.0,0.1946564]
[1746801741189,0.420639,102780.0,102760.0,0.2919069]
[1746801741190,0.059839,102780.0,102760.0,0.2919069]
[1746801741484,0.291915,102770.0,102760.0,0.38926366]
[1746801741692,0.194612,102770.0,102760.0,0.6361001]
[1746801741892,0.194612,102770.0,102760.0,0.72237942]
[1746801742197,0.17303016,102780.0,102770.0,0.1945995]
[1746801742492,0.37061076,102780.0,102770.0,0.88851526]
[1746801742692,0.17603016,102780.0,102770.0,0.88851526]
[1746801742892,0.17303016,102780.0,102770.0,0.98581518]
[1746801743100,0.36761076,102780.0,102770.0,0.98581518]
[1746801743584,0.37161076,102780.0,102770.0,0.98581518]
[1746801744493,0.37161076,102780.0,102770.0,0.65996371]
[1746801744788,0.55471076,102780.0,102770.0,0.29916371]
[1746801744997,0.55471076,102780.0,102770.0,0.65996371]
[1746801745194,0.55471076,102780.0,102770.0,0.29916371]
[1746801745703,0.3856806,102780.0,102770.0,0.29916371]
[1746801745895,0.2025806,102780.0,102770.0,0.29916371]
[1746801746788,0.3856806,102780.0,102770.0,0.29916371]
[1746801747196,0.2957806,102780.0,102770.0,0.29916371]
[1746801747391,0.008,102780.0,102770.0,0.62501518]
[1746801747696,0.2025806,102780.0,102770.0,0.62501518]
[1746801747895,0.2025806,102780.0,102770.0,0.29916371]
[1746801748092,0.5633806,102780.0,102770.0,0.10456421]
[1746801748292,0.3871806,102780.0,102770.0,0.29916371]
[1746801750595,0.7479806,102780.0,102770.0,0.10456421]
[1746801750894,0.1945995,102770.0,102760.0,0.1946166]
[1746801751098,0.1945995,102770.0,102750.0,1.3599464]
[1746801751099,0.1946185,102760.0,102750.0,1.3599464]
[1746801751296,0.7400185,102760.0,102750.0,1.17258429]
[1746801751601,0.7400185,102760.0,102750.0,1.26261992]
[1746801751801,0.7400185,102760.0,102750.0,1.45725732]
[1746801752595,0.7400185,102760.0,102750.0,1.46452161]
[1746801752795,0.3792185,102760.0,102750.0,1.55652161]
[1746801753102,0.2907185,102760.0,102750.0,1.55652161]
[1746801753302,0.6515185,102760.0,102750.0,1.55652161]
[1746801753606,0.7410185,102760.0,102750.0,1.55652161]
[1746801754606,0.7410185,102760.0,102750.0,1.65422161]
[1746801755703,0.7410185,102760.0,102750.0,1.16532]
[1746801755909,0.1946374,102750.0,102740.0,1.99762548]
[1746801756108,0.1946374,102750.0,102740.0,2.22997695]
[1746801756410,0.1946374,102750.0,102740.0,0.8345601]
[1746801756611,0.2836374,102750.0,102740.0,0.8345601]
[1746801757211,0.1946374,102750.0,102740.0,0.8345601]
[1746801757812,0.555434,102760.0,102750.0,0.1946374]
[1746801758012,0.5067575,102770.0,102760.0,0.1946185]
[1746801758013,0.4554,102770.0,102760.0,0.1946185]
[1746801758311,0.3608,102770.0,102760.0,0.61973426]
[1746801758610,0.3608,102770.0,102760.0,2.02244409]
[1746801759405,0.002,102770.0,102760.0,2.05739262]
[1746801759606,0.002,102770.0,102760.0,2.38324409]
[1746801760113,0.002,102770.0,102760.0,3.54852409]
[1746801760306,0.002,102770.0,102760.0,3.74583208]
[1746801760507,0.004,102780.0,102760.0,3.74583208]
[1746801760716,0.004,102780.0,102770.0,0.79391576]
[1746801760923,0.1,102800.0,102770.0,0.98871576]
[1746801761123,0.1,102800.0,102790.0,0.69391576]
[1746801761620,0.004,102810.0,102790.0,1.23173147]
[1746801761816,0.0936,102840.0,102800.0,2.05399576]
[1746801762016,0.0911,102830.0,102820.0,0.33311576]
[1746801762215,0.0911,102830.0,102820.0,0.10506429]
[1746801762419,0.1807,102830.0,102820.0,0.20234528]
[1746801762611,0.0911,102830.0,102820.0,0.52819675]
[1746801762808,0.0936,102840.0,102820.0,0.5779434]
[1746801763017,0.1834,102840.0,102830.0,0.10506429]
[1746801763722,0.1834,102840.0,102830.0,0.2023169]
[1746801764424,0.5442,102840.0,102830.0,0.19505261]
[1746801764716,0.1844,102840.0,102830.0,0.09725261]
[1746801764922,0.79151022,102840.0,102830.0,0.09725261]
[1746801765318,0.5482,102840.0,102830.0,0.09725261]
[1746801766418,0.1874,102840.0,102830.0,0.09725261]
[1746801766626,0.5482,102840.0,102830.0,0.19125261]
[1746801767127,0.5482,102840.0,102830.0,0.1985169]
[1746801768024,0.5482,102840.0,102830.0,0.1045169]
[1746801768621,0.5482,102840.0,102830.0,0.09725261]
[1746801768825,0.5482,102840.0,102830.0,0.1045169]
[1746801769120,0.5482,102840.0,102830.0,0.1985169]
[1746801770026,0.5482,102840.0,102830.0,0.44482712]
[1746801770815,0.1874,102840.0,102830.0,0.1985169]
[1746801771022,0.0978,102840.0,102830.0,0.44482712]
[1746801771725,0.0978,102840.0,102830.0,0.1985169]
[1746801771923,0.1919,102840.0,102830.0,0.1985169]
[1746801772125,0.1919,102840.0,102830.0,1.94482712]
[1746801772529,0.0978,102840.0,102830.0,2.30562712]
[1746801772734,0.008,102840.0,102830.0,2.04182712]
[1746801773119,0.008,102840.0,102830.0,1.7955169]
[1746801773324,0.008,102840.0,102830.0,2.04182712]
[1746801774730,0.2024671,102840.0,102830.0,2.23631312]
[1746801775536,0.2024671,102840.0,102830.0,1.9900029]
[1746801775832,0.2024671,102840.0,102830.0,2.23631312]
[1746801776027,0.008,102840.0,102830.0,2.59711312]
[1746801776228,0.008,102840.0,102830.0,2.3508029]
[1746801776433,0.008,102840.0,102830.0,2.78771312]
[1746801776629,0.008,102840.0,102830.0,2.68771312]
[1746801776834,0.008,102840.0,102830.0,2.78771312]
[1746801777534,0.008,102840.0,102830.0,2.88495712]
[1746801777733,0.0924,102860.0,102850.0,0.1944482]
[1746801777933,0.2905206,102870.0,102860.0,0.1944293]
[1746801778125,0.004,102870.0,102860.0,0.62463952]
[1746801778335,0.004,102870.0,102860.0,2.78716296]
[1746801778535,0.004,102870.0,102860.0,2.78446296]
[1746801779036,0.004,102870.0,102860.0,2.68724696]
[1746801779624,0.004,102870.0,102860.0,2.78724696]
[1746801780025,0.004,102870.0,102860.0,2.88446296]
[1746801780331,0.0894,102890.0,102880.0,0.1943915]
[1746801780528,0.32170813,102900.0,102890.0,0.1943726]
[1746801780728,0.22490813,102900.0,102890.0,0.44794711]
[1746801780939,0.22490813,102900.0,102890.0,0.63934711]
[1746801781129,0.22490813,102900.0,102890.0,1.097343]
[1746801781635,0.41926183,102900.0,102890.0,1.097343]
[1746801781833,0.2983537,102900.0,102890.0,1.097343]
[1746801782032,0.3933537,102900.0,102890.0,1.097343]
[1746801782230,0.199,102900.0,102890.0,1.097343]
[1746801782433,0.104,102900.0,102890.0,1.097343]
[1746801782734,0.104,102900.0,102890.0,1.11180345]
[1746801783239,0.104,102900.0,102890.0,1.21895368]
[1746801783537,0.2855177,102920.0,102910.0,0.1943348]
[1746801783731,0.3805177,102920.0,102910.0,0.80144502]
[1746801783934,0.3805177,102920.0,102910.0,0.62794502]
[1746801784135,0.3805177,102920.0,102910.0,0.72513147]
[1746801784645,0.7413177,102920.0,102910.0,0.47882125]
[1746801784839,0.3805177,102920.0,102910.0,0.72513147]
[1746801785335,0.1862,102920.0,102910.0,1.09319576]
[1746801785537,0.095,102920.0,102910.0,1.09319576]
[1746801786033,0.48570813,102930.0,102920.0,0.1943159]
[1746801786241,0.0963,102930.0,102920.0,2.16247041]
[1746801786426,0.0963,102930.0,102920.0,1.91616019]
[1746801786740,0.290597,102930.0,102920.0,2.25963797]
[1746801786938,0.1924,102930.0,102920.0,1.89883797]
[1746801787332,0.0963,102930.0,102920.0,1.99883797]
[1746801787638,0.290597,102930.0,102920.0,1.89883797]
[1746801787835,0.1902,102930.0,102920.0,1.89983797]
[1746801788032,0.384497,102930.0,102920.0,2.26063797]
[1746801788233,0.745297,102930.0,102920.0,1.26204756]
[1746801788530,0.198297,102930.0,102920.0,1.70993797]
[1746801788738,0.198297,102930.0,102920.0,1.89403797]
[1746801788939,0.388397,102930.0,102920.0,1.89703797]
[1746801789239,0.388397,102930.0,102920.0,1.65072775]
[1746801789435,0.388397,102930.0,102920.0,1.89703797]
[1746801789941,0.388397,102930.0,102920.0,1.44914756]
[1746801790137,0.388397,102930.0,102920.0,1.55336346]
[1746801790345,0.388397,102930.0,102920.0,1.79967368]
[1746801790535,0.749197,102930.0,102920.0,1.26504756]
[1746801790842,0.749197,102930.0,102920.0,1.45936346]
[1746801791038,0.388397,102930.0,102920.0,1.45936346]
[1746801791243,0.388397,102930.0,102920.0,1.70567368]
[1746801791434,0.388397,102930.0,102920.0,1.45936346]
[1746801791634,0.749197,102930.0,102920.0,1.45936346]
[1746801792137,0.388397,102930.0,102920.0,1.45936346]
[1746801792639,0.388397,102930.0,102920.0,1.26504756]
[1746801793040,0.749197,102930.0,102920.0,1.26504756]
[1746801793744,0.749197,102930.0,102920.0,1.45936346]
[1746801794749,0.749197,102930.0,102920.0,1.70567368]
[1746801794937,0.749197,102930.0,102920.0,1.80487368]
[1746801796346,0.388397,102930.0,102920.0,1.80487368]
[1746801796640,0.388397,102930.0,102920.0,1.89967368]
[1746801797040,0.388397,102930.0,102920.0,1.65336346]
[1746801797041,0.749197,102930.0,102920.0,1.65336346]
[1746801797246,0.388397,102930.0,102920.0,1.89967368]
[1746801797445,0.388397,102930.0,102920.0,1.65336346]
[1746801797943,0.388397,102930.0,102920.0,1.66062775]
[1746801798146,0.749197,102930.0,102920.0,0.10116756]
[1746801798346,0.749197,102930.0,102890.0,0.01446045]
[1746801798347,1.53695292,102930.0,102890.0,0.01446045]
[1746801798538,0.1943537,102900.0,102890.0,0.12052474]
[1746801798743,0.1943537,102900.0,102890.0,0.30043689]
[1746801798946,0.3797537,102900.0,102890.0,0.1943726]
[1746801799140,0.3797537,102900.0,102890.0,0.29154488]
[1746801799448,0.3797537,102900.0,102890.0,0.54611939]
[1746801799640,0.3797537,102900.0,102890.0,0.74301939]
[1746801800137,0.3797537,102900.0,102890.0,0.74201939]
[1746801800340,0.7405537,102900.0,102890.0,0.004]
[1746801800641,0.7405537,102900.0,102890.0,0.11565008]
[1746801801241,0.9005537,102900.0,102890.0,0.11565008]
[1746801801441,1.24405192,102900.0,102890.0,0.10118645]
[1746801801837,0.1943915,102880.0,102870.0,0.1944069]
[1746801802149,0.7151915,102880.0,102870.0,0.1944069]
[1746801802450,0.9939915,102880.0,102870.0,0.1944069]
[1746801803152,0.8339915,102880.0,102870.0,0.1944069]
[1746801803447,0.8339915,102880.0,102870.0,0.1974069]
[1746801803642,0.8339915,102880.0,102870.0,0.1994069]
[1746801804042,0.8339915,102880.0,102870.0,0.005]
[1746801804249,0.8339915,102880.0,102870.0,0.01982369]
[1746801804445,1.44110172,102880.0,102870.0,0.005]
[1746801805052,1.53830572,102880.0,102870.0,0.005]
[1746801805352,1.4519955,102880.0,102870.0,0.005]
[1746801805547,1.3547915,102880.0,102870.0,0.1994104]
[1746801806147,1.1947915,102880.0,102870.0,0.1994104]
[1746801806656,1.1947915,102880.0,102870.0,0.38721574]
[1746801807043,0.185,102880.0,102870.0,0.64079025]
[1746801807348,0.2839915,102880.0,102870.0,0.49128003]
[1746801807556,0.3734915,102880.0,102870.0,0.49128003]
[1746801808250,0.3734915,102880.0,102870.0,0.30388003]
[1746801808451,0.7342915,102880.0,102870.0,0.30388003]
[1746801808656,0.7342915,102880.0,102870.0,0.41648117]
[1746801809247,0.7342915,102880.0,102870.0,0.41548117]
[1746801809455,0.7342915,102880.0,102870.0,0.41348117]
[1746801809647,0.7342915,102880.0,102870.0,0.31578117]
[1746801809955,0.7342915,102880.0,102870.0,0.11410648]
[1746801810156,0.7342915,102880.0,102870.0,0.30851688]
[1746801811059,0.7342915,102880.0,102870.0,0.11410648]
[1746801811356,0.7342915,102880.0,102870.0,0.30851688]
[1746801811559,0.98060172,102880.0,102870.0,0.11410648]
[1746801811754,1.07780572,102880.0,102870.0,0.11410648]
[1746801811962,0.7342915,102880.0,102870.0,0.11410648]
[1746801813060,0.7342915,102880.0,102870.0,0.30851688]
[1746801813457,0.7342915,102880.0,102870.0,0.11410648]
[1746801813854,0.7342915,102880.0,102870.0,0.30851688]
[1746801814157,0.7342915,102880.0,102870.0,0.11410648]
[1746801815057,0.7342915,102880.0,102870.0,0.30851688]
[1746801815659,0.7342915,102880.0,102870.0,0.39881688]
[1746801816259,0.7342915,102880.0,102870.0,0.30851688]
[1746801816460,0.7342915,102880.0,102870.0,0.11410648]
[1746801816661,0.98060172,102880.0,102870.0,0.11410648]
[1746801816866,0.7342915,102880.0,102870.0,0.11410648]
[1746801817065,0.98060172,102880.0,102870.0,0.11410648]
[1746801817265,0.7342915,102880.0,102870.0,0.30851688]
[1746801817768,0.7342915,102880.0,102870.0,0.49611688]
[1746801818063,0.7342915,102880.0,102870.0,0.50338117]
[1746801818362,0.19534611,102900.0,102890.0,0.1943726]
[1746801818565,0.18614611,102900.0,102890.0,0.80874711]
[1746801818762,0.09644611,102900.0,102890.0,0.99634711]
[1746801818966,0.29079981,102900.0,102890.0,0.73273356]
[1746801819158,0.29079981,102900.0,102890.0,0.48642334]
[1746801819355,0.38049981,102900.0,102890.0,0.48642334]
[1746801819557,0.10044611,102900.0,102890.0,0.73273356]
[1746801819865,0.10044611,102900.0,102890.0,0.84722334]
[1746801820070,0.10044611,102900.0,102890.0,1.19363947]
[1746801820367,0.29279981,102900.0,102890.0,1.19463947]
[1746801820671,0.29279981,102900.0,102890.0,1.18753356]
[1746801821070,0.1963537,102900.0,102890.0,0.38605074]
[1746801821275,0.3830537,102900.0,102890.0,0.48742334]
[1746801821664,0.2912537,102900.0,102890.0,0.73373356]
[1746801821972,0.2912537,102900.0,102890.0,0.73473356]
[1746801822172,0.2892537,102900.0,102890.0,0.73473356]
[1746801822470,0.2892537,102900.0,102890.0,0.73573356]
[1746801822771,0.2892537,102900.0,102890.0,0.73473356]
[1746801822973,0.2892537,102900.0,102890.0,0.73773356]
[1746801823775,0.3810537,102900.0,102890.0,0.49142334]
[1746801824071,0.7418537,102900.0,102890.0,0.28978645]
[1746801824371,0.7418537,102900.0,102890.0,0.10218645]
[1746801824567,0.8351537,102900.0,102890.0,0.10218645]
[1746801825575,0.8371537,102900.0,102890.0,0.09718645]
[1746801826167,0.8371537,102900.0,102890.0,0.29155905]
[1746801826370,0.8371537,102900.0,102890.0,0.48325905]
[1746801827473,0.7438537,102900.0,102890.0,0.49052334]
[1746801827672,0.7438537,102900.0,102890.0,0.73683356]
[1746801828172,0.6520537,102900.0,102890.0,0.73683356]
[1746801828372,0.5571537,102900.0,102890.0,0.73683356]
[1746801828674,0.5561537,102900.0,102890.0,0.73683356]
[1746801828874,0.1963537,102900.0,102890.0,1.09763356]
[1746801829075,0.001,102900.0,102890.0,1.48615356]
[1746801829267,0.001,102900.0,102890.0,1.38715356]
[1746801829573,0.94333981,102920.0,102910.0,0.1943348]
[1746801829775,0.94333981,102920.0,102910.0,0.20159909]
[1746801830070,0.94333981,102920.0,102910.0,0.18946429]
[1746801830274,0.94333981,102920.0,102910.0,0.28665074]
[1746801830567,0.89475791,102920.0,102910.0,0.48098554]
[1746801830773,0.79605791,102920.0,102910.0,0.72729576]
[1746801831374,0.79705791,102920.0,102910.0,0.72729576]
[1746801831770,0.79705791,102920.0,102910.0,0.48098554]
[1746801831977,0.79805791,102920.0,102910.0,0.48098554]
[1746801832169,0.43725791,102920.0,102910.0,0.72729576]
[1746801832567,0.79805791,102920.0,102910.0,0.72729576]
[1746801832871,0.79805791,102920.0,102910.0,0.48098554]
[1746801833265,0.79805791,102920.0,102910.0,0.72729576]
[1746801833474,0.89275791,102920.0,102910.0,0.48098554]
[1746801833977,0.7963118,102920.0,102910.0,0.48098554]
[1746801835980,0.7963118,102920.0,102910.0,0.28665074]
[1746801836173,0.7963118,102920.0,102910.0,0.09718645]
[1746801837976,0.7963118,102920.0,102910.0,0.29152125]
[1746801838376,0.7963118,102920.0,102910.0,0.47532125]
[1746801839377,0.7963118,102920.0,102910.0,0.28098645]
[1746801839683,0.7963118,102920.0,102910.0,0.47532125]
[1746801841576,0.7963118,102920.0,102910.0,0.48258554]
[1746801841786,0.7963118,102920.0,102910.0,0.66969873]
[1746801842079,0.7963118,102920.0,102910.0,0.4823403]
[1746801842286,0.5571302,102920.0,102910.0,0.66969873]
[1746801842479,0.5571159,102920.0,102910.0,0.66969873]
[1746801842784,0.09644611,102940.0,102930.0,0.194297]
[1746801843079,0.14884704,102960.0,102950.0,0.1942593]
[1746801843080,0.24284704,102960.0,102950.0,0.1942593]
[1746801843275,0.34308744,102960.0,102950.0,1.11048202]
[1746801843475,0.34308744,102960.0,102950.0,1.02029115]
[1746801843679,0.34308744,102960.0,102950.0,1.20764958]
[1746801843680,0.53118744,102960.0,102950.0,1.20764958]
[1746801845085,0.3873404,102960.0,102950.0,1.20764958]
[1746801845780,0.3873404,102960.0,102950.0,1.4492709]
[1746801846083,0.1992404,102960.0,102950.0,1.6092709]
[1746801846279,0.0995,102960.0,102950.0,1.6092709]
[1746801846671,0.0995,102960.0,102950.0,1.62401846]
[1746801846880,0.2937404,102960.0,102950.0,1.62401846]
[1746801847079,0.005,102960.0,102950.0,1.72401846]
[1746801847283,0.005,102960.0,102950.0,1.81371846]
[1746801847478,0.1843,102970.0,102960.0,0.1942404]
[1746801847672,0.0945,102970.0,102960.0,1.00058444]
[1746801847979,0.2887216,102970.0,102960.0,1.09128444]
[1746801848183,0.2887216,102970.0,102960.0,2.60272507]
[1746801848389,0.2887216,102970.0,102960.0,2.50272507]
[1746801848580,0.3876216,102970.0,102960.0,2.50272507]
[1746801848877,0.3886216,102970.0,102960.0,2.50272507]
[1746801849277,0.3886216,102970.0,102960.0,2.58840482]
[1746801849478,0.3886216,102970.0,102960.0,2.34272507]
[1746801849980,0.1944,102970.0,102960.0,2.58840482]
[1746801850282,0.3886216,102970.0,102960.0,2.34272507]
[1746801850681,0.1944,102970.0,102960.0,2.58840482]
[1746801850883,0.0955,102970.0,102960.0,2.68840482]
[1746801851184,0.2897216,102970.0,102960.0,2.89068507]
[1746801851580,0.1952216,102970.0,102960.0,2.89068507]
[1746801851881,0.2939216,102970.0,102960.0,3.13636482]
[1746801852082,0.2929216,102970.0,102960.0,3.13836482]
[1746801852280,0.3398752,102980.0,102970.0,0.1942216]
[1746801852484,0.1942168,102980.0,102970.0,0.99066564]
[1746801852683,0.1942168,102980.0,102970.0,0.74498589]
[1746801852881,0.3896968,102980.0,102970.0,0.84210627]
[1746801854584,0.3896968,102980.0,102970.0,0.65940627]
[1746801854781,0.3896968,102980.0,102970.0,0.46518467]
[1746801854986,0.63537655,102980.0,102970.0,0.46518467]
[1746801855182,0.3896968,102980.0,102970.0,0.46518467]
[1746801855377,0.3896968,102980.0,102970.0,0.65940627]
[1746801855785,0.3896968,102980.0,102970.0,0.46518467]
[1746801856188,0.3896968,102980.0,102970.0,0.65940627]
[1746801856788,0.3896968,102980.0,102970.0,0.45792038]
[1746801857088,0.63537655,102980.0,102970.0,0.45792038]
[1746801857391,0.3896968,102980.0,102970.0,0.65214198]
[1746801857594,0.63537655,102980.0,102970.0,0.3608]
[1746801857782,0.98248855,102980.0,102970.0,0.2124]
[1746801857987,0.1942216,102970.0,102960.0,0.5550404]
[1746801858194,0.5405216,102970.0,102960.0,0.5550404]
[1746801858389,0.78620135,102970.0,102960.0,0.45791094]
[1746801858585,0.78620135,102970.0,102960.0,0.65215134]
[1746801858785,0.5405216,102970.0,102960.0,0.65215134]
[1746801859185,0.3805216,102970.0,102960.0,0.65215134]
[1746801859491,0.1863,102970.0,102960.0,0.90509538]
[1746801859791,0.3805216,102970.0,102960.0,0.66041563]
[1746801859993,0.3805216,102970.0,102960.0,0.75481563]
[1746801860290,0.3805216,102970.0,102960.0,0.65415134]
[1746801860499,0.3805216,102970.0,102960.0,0.66141563]
[1746801861388,0.1863,102970.0,102960.0,1.09929538]
[1746801861594,0.3805216,102970.0,102960.0,1.09929538]
[1746801862296,0.3805216,102970.0,102960.0,1.01361563]
[1746801864102,0.3805216,102970.0,102960.0,0.85361563]
[1746801864499,0.3805216,102970.0,102960.0,0.65211094]
[1746801864800,0.3805216,102970.0,102960.0,0.65415134]
[1746801865196,0.3805216,102970.0,102960.0,0.45991094]
[1746801865797,0.3805216,102970.0,102960.0,0.65415134]
[1746801866193,0.3805216,102970.0,102960.0,0.66141563]
[1746801867599,0.1863,102970.0,102960.0,0.84863818]
[1746801867799,0.3805216,102970.0,102960.0,1.04043818]
[1746801868104,0.3805216,102970.0,102960.0,1.20043818]
[1746801869201,0.3805216,102970.0,102960.0,0.85321563]
[1746801869411,0.3805216,102970.0,102960.0,1.04043818]
[1746801869799,0.3805216,102970.0,102960.0,1.04243818]
[1746801870005,0.3805216,102970.0,102960.0,1.04143818]
[1746801870208,0.3805216,102970.0,102960.0,0.85621563]
[1746801870713,0.3805216,102970.0,102960.0,1.04343818]
[1746801871013,0.3805216,102970.0,102960.0,0.85621563]
[1746801871403,0.3805216,102970.0,102960.0,0.76121563]
[1746801871603,0.3805216,102970.0,102960.0,0.66441563]
[1746801872308,0.3805216,102970.0,102960.0,0.65715134]
[1746801872514,0.3805216,102970.0,102960.0,0.85163818]
[1746801872708,0.3805216,102970.0,102960.0,0.94863818]
[1746801873006,0.3805216,102970.0,102960.0,0.76141563]
[1746801873410,0.3805216,102970.0,102960.0,0.66441563]
[1746801874001,0.3805216,102970.0,102960.0,0.47017523]
[1746801874305,0.56774415,102970.0,102960.0,0.47017523]
[1746801874615,0.56774415,102970.0,102960.0,0.46291094]
[1746801874915,0.6403889,102970.0,102960.0,0.65715134]
[1746801875107,0.45316635,102970.0,102960.0,0.65715134]
[1746801875414,0.6403889,102970.0,102960.0,0.65715134]
[1746801875609,0.45316635,102970.0,102960.0,0.65715134]
[1746801875809,0.6403889,102970.0,102960.0,0.65515134]
[1746801876208,0.6403889,102970.0,102960.0,0.46091094]
[1746801876812,0.45316635,102970.0,102960.0,0.65515134]
[1746801877107,0.6403889,102970.0,102960.0,0.65315134]
[1746801877305,0.6403889,102970.0,102960.0,0.65415134]
[1746801877613,0.45316635,102970.0,102960.0,0.65415134]
[1746801877813,0.45316635,102970.0,102960.0,0.45991094]
[1746801878107,0.61316635,102970.0,102960.0,0.65415134]
[1746801878312,0.61316635,102970.0,102960.0,0.66141563]
[1746801879014,0.5405216,102970.0,102960.0,0.75431563]
[1746801879211,0.3805216,102970.0,102960.0,0.75431563]
[1746801880413,0.3805216,102970.0,102960.0,0.84981563]
[1746801880615,0.1863,102970.0,102960.0,0.84981563]
[1746801880811,0.3805216,102970.0,102960.0,1.03703818]
[1746801881108,0.1863,102970.0,102960.0,1.29233818]
[1746801881309,0.2909216,102970.0,102960.0,1.47956073]
[1746801881509,0.2909216,102970.0,102960.0,1.39233818]
[1746801882109,0.2909216,102970.0,102960.0,1.57956073]
[1746801882310,0.0967,102970.0,102960.0,1.86604073]
[1746801882911,0.10268,102980.0,102970.0,0.1942216]
[1746801883112,0.20188,102980.0,102970.0,1.47938844]
[1746801883313,0.3960827,102980.0,102970.0,1.47212415]
[1746801883617,0.3960827,102980.0,102970.0,1.57650882]
[1746801883816,0.21890152,103000.0,102990.0,0.1941839]
[1746801884114,0.21890152,103000.0,102990.0,3.00677329]
[1746801884307,0.21890152,103000.0,102990.0,2.71955074]
[1746801884509,0.21890152,103000.0,102990.0,4.60006168]
[1746801885023,0.21890152,103000.0,102990.0,4.78728423]
[1746801885616,0.109,103000.0,102990.0,4.78728423]
[1746801886318,0.109,103000.0,102990.0,4.78828423]
[1746801886515,0.109,103000.0,102990.0,4.42153801]
[1746801886820,0.11790152,103020.0,103010.0,0.1941461]
[1746801887025,0.31170152,103020.0,103010.0,1.49667294]
[1746801887320,0.21610152,103020.0,103010.0,1.68277294]
[1746801887518,0.21610152,103020.0,103010.0,1.77986503]
[1746801888218,0.21710152,103020.0,103010.0,1.93986503]
[1746801888519,0.1032,103020.0,103010.0,1.93986503]
[1746801889912,0.1032,103020.0,103010.0,3.43986503]
[1746801890717,0.3944273,103020.0,103010.0,3.43852248]
[1746801890918,0.2003,103020.0,103010.0,3.62574503]
[1746801891119,0.2003,103020.0,103010.0,3.48064745]
[1746801891313,0.2003,103020.0,103010.0,3.58064745]
[1746801891520,0.3944273,103020.0,103010.0,3.48064745]
[1746801891717,0.2003,103020.0,103010.0,3.48064745]
[1746801891914,0.3944273,103020.0,103010.0,3.2933049]
[1746801892112,0.3944273,103020.0,103010.0,1.31414061]
[1746801892319,0.4857273,103020.0,103010.0,1.31414061]
[1746801892515,0.67294985,103020.0,103010.0,1.11999451]
[1746801892717,0.4857273,103020.0,103010.0,1.11999451]
[1746801892924,0.4857273,103020.0,103010.0,1.31414061]
[1746801893131,0.6457273,103020.0,103010.0,1.31414061]
[1746801898120,0.4857273,103020.0,103010.0,1.31414061]
[1746801899225,0.6457273,103020.0,103010.0,1.31414061]
[1746801899625,0.83294985,103020.0,103010.0,0.83359451]
[1746801900021,0.6457273,103020.0,103010.0,0.83359451]
[1746801900325,0.6457273,103020.0,103010.0,1.02774061]
[1746801901126,0.6457273,103020.0,103010.0,0.83359451]
[1746801901727,0.6457273,103020.0,103010.0,1.02774061]
[1746801903236,0.83294985,103020.0,103010.0,1.02774061]
[1746801903429,0.6457273,103020.0,103010.0,1.02774061]
[1746801903738,0.6457273,103020.0,103010.0,0.83359451]
[1746801904226,0.83294985,103020.0,103010.0,0.83359451]
[1746801904432,0.3397644,103010.0,103000.0,0.554965]
[1746801904633,0.4297644,103010.0,103000.0,0.554965]
[1746801904834,0.3812238,103010.0,103000.0,0.74945184]
[1746801905030,0.3812238,103010.0,103000.0,0.56222929]
[1746801905531,0.3812238,103010.0,103000.0,0.65931195]
[1746801905924,0.3812238,103010.0,103000.0,0.66031195]
[1746801906232,0.3812238,103010.0,103000.0,0.66231195]
[1746801906738,0.1941461,103010.0,103000.0,0.8495345]
[1746801906925,0.2877461,103010.0,103000.0,1.0350345]
[1746801908238,0.2877461,103010.0,103000.0,0.84781195]
[1746801909228,0.2877461,103010.0,103000.0,0.46088266]
[1746801909229,0.49031288,103010.0,103000.0,0.46088266]
[1746801909428,0.39699033,103010.0,103000.0,0.46814695]
[1746801909734,0.39699033,103010.0,103000.0,0.8495345]
[1746801910128,0.39699033,103010.0,103000.0,0.85521195]
[1746801911735,0.10088,103010.0,103000.0,1.1424345]
[1746801912034,0.3863261,103010.0,103000.0,1.0424345]
[1746801912242,0.19218,103010.0,103000.0,1.04861195]
[1746801912537,0.2950261,103010.0,103000.0,1.04861195]
[1746801912832,0.2950261,103010.0,103000.0,1.2358345]
[1746801913034,0.2950261,103010.0,103000.0,1.1358345]
[1746801913236,0.2950261,103010.0,103000.0,1.2958345]
[1746801914235,0.2950261,103010.0,103000.0,1.10861195]
[1746801914538,0.2950261,103010.0,103000.0,1.2958345]
[1746801914729,0.3876261,103010.0,103000.0,1.10861195]
[1746801914925,0.3876261,103010.0,103000.0,1.2958345]
[1746801915825,0.3876261,103010.0,103000.0,2.7958345]
[1746801916027,0.2950261,103010.0,103000.0,2.7958345]
[1746801916238,0.2950261,103010.0,103000.0,2.60861195]
[1746801916431,0.2950261,103010.0,103000.0,1.10861195]
[1746801916730,0.3889261,103010.0,103000.0,0.91444695]
[1746801916937,0.3889261,103010.0,103000.0,1.10861195]
[1746801917140,0.3889261,103010.0,103000.0,0.94861195]
[1746801917341,0.10088,103010.0,103000.0,1.1358345]
[1746801917534,0.2950261,103010.0,103000.0,0.94861195]
[1746801917734,0.3889261,103010.0,103000.0,0.94861195]
[1746801920034,0.57614865,103010.0,103000.0,0.74718266]
[1746801920237,0.57614865,103010.0,103000.0,0.003]
[1746801920541,0.57614865,103010.0,102990.0,0.03039]
[1746801920542,0.194165,103000.0,102990.0,0.03039]
[1746801920745,0.93688755,103000.0,102990.0,0.03039]
[1746801920942,0.1942027,102980.0,102970.0,1.36601363]
[1746801921139,0.1942027,102980.0,102970.0,1.37327792]
[1746801921335,0.3889027,102980.0,102970.0,1.32472332]
[1746801921541,0.57612525,102980.0,102970.0,1.32211541]
[1746801921845,0.3889027,102980.0,102970.0,1.32211541]
[1746801922044,0.3889027,102980.0,102970.0,1.41561541]
[1746801922546,0.3889027,102980.0,102970.0,1.60283796]
[1746801923146,0.39682608,102980.0,102970.0,1.41861541]
[1746801923542,0.39682608,102980.0,102970.0,1.32881541]
[1746801923744,0.39682608,102980.0,102970.0,1.14501541]
[1746801924942,0.39682608,102980.0,102970.0,1.09646221]
[1746801925141,0.58404863,102980.0,102970.0,0.89499022]
[1746801925446,0.58404863,102980.0,102970.0,0.61087022]
[1746801926045,0.68116063,102980.0,102970.0,0.15297813]
[1746801926351,0.68116063,102980.0,102970.0,0.2002216]
[1746801926352,0.74404863,102980.0,102970.0,0.2002216]